bitfinex-derivatives/quotes_ETHF0:USTF0_20210406
["timestamp","ask_amount","ask_price","bid_price","bid_amount"]
[1617671485452,0.05442567,2149.2,2148.0,69.8082]
[1617671485754,13.0588,2149.4,2148.0,69.8082]
[1617671485755,0.05442703,2149.1,2148.0,69.8082]
[1617671486152,0.05442789,2149.0,2148.0,69.8082]
[1617671486860,0.05443062,2148.9,2148.0,69.8082]
[1617671487063,0.05443062,2148.9,2148.2,2.90695]
[1617671487656,0.05442848,2149.0,2148.2,4.93995]
[1617671487873,0.05442848,2149.0,2148.2,5.88015]
[1617671488258,0.0544239,2149.1,2148.2,5.88015]
[1617671488559,0.0544239,2149.1,2148.2,4.93995]
[1617671488760,0.0544239,2149.1,2148.2,34.93995]
[1617671488962,0.0544238,2149.2,2148.2,34.93995]
[1617671489161,0.0544238,2149.2,2148.7,2.90695]
[1617671489360,0.0544238,2149.2,2148.7,5.27795]
[1617671490182,0.05442232,2149.3,2148.7,5.27795]
[1617671490561,0.05442265,2149.2,2148.7,5.27795]
[1617671490961,0.05442265,2149.2,2148.2,32.033]
[1617671491162,2.90695,2148.8,2148.5,2.90695]
[1617671492966,13.0588,2149.4,2148.5,32.90695]
[1617671493169,13.11321779,2149.4,2148.9,2.90695]
[1617671493466,13.11321779,2149.4,2148.5,30.0]
[1617671494667,13.0588,2149.4,2148.5,30.0]
[1617671495168,0.41,2149.2,2148.7,2.90695]
[1617671497171,0.41,2149.2,2149.0,2.90695]
[1617671497371,0.41,2149.2,2148.2,2.5133]
[1617671497670,0.41,2149.2,2148.2,32.5133]
[1617671499174,0.41,2149.2,2148.7,2.90695]
[1617671499376,0.41,2149.2,2148.7,6.14025]
[1617671500376,0.41,2149.2,2148.7,3.82955]
[1617671501077,2.90695,2148.8,2148.7,2.90695]
[1617671501576,2.90695,2148.8,2148.3,32.0923]
[1617671502777,2.90695,2148.8,2148.3,30.0]
[1617671503076,2.90695,2148.8,2148.7,2.90695]
[1617671507183,73.71205,2148.8,2148.7,2.90695]
[1617671507782,73.71205,2148.8,2148.7,3.83245]
[1617671508985,73.71205,2148.8,2148.7,2.90695]
[1617671511089,2.90695,2148.8,2148.7,2.90695]
[1617671511488,2.90695,2148.8,2148.1,0.9226]
[1617671511905,74.511,2148.7,2148.1,0.9226]
[1617671512190,74.511,2148.7,2148.0,30.0]
[1617671512990,74.511,2148.7,2146.8,30.0]
[1617671513290,74.511,2148.7,2147.9,2.90695]
[1617671515095,2.90695,2148.0,2147.9,2.90695]
[1617671516998,5.49035,2148.0,2147.9,2.90695]
[1617671517900,5.49035,2148.0,2146.8,30.0]
[1617671518218,69.0786,2147.4,2145.7,30.0]
[1617671518399,71.1311,2147.4,2145.7,30.0]
[1617671519201,71.1311,2147.4,2147.1,2.90695]
[1617671519602,25.4689,2147.9,2147.1,2.90695]
[1617671520003,25.4689,2147.9,2146.7,73.0465]
[1617671520605,25.4689,2147.9,2146.7,103.0465]
[1617671520805,76.8347,2148.4,2146.7,103.0465]
[1617671521005,76.8347,2148.4,2146.7,105.6103]
[1617671521207,76.8347,2148.4,2148.2,2.90695]
[1617671521409,76.8347,2148.4,2146.7,105.6103]
[1617671521410,76.8347,2148.4,2147.5,2.2366]
[1617671522008,76.8347,2148.4,2147.5,32.2366]
[1617671522406,76.8347,2148.4,2147.5,33.1557]
[1617671523313,76.8347,2148.4,2148.3,3.83325]
[1617671523513,76.8347,2148.4,2148.3,2.90695]
[1617671526615,76.8347,2148.4,2148.3,5.45865]
[1617671529221,2.90695,2148.5,2148.3,5.45865]
[1617671530122,13.1883,2148.8,2148.3,5.45865]
[1617671531224,13.1883,2148.8,2148.7,2.90695]
[1617671535825,13.1883,2148.8,2148.7,5.58835]
[1617671540131,13.1883,2148.8,2148.7,2.90695]
[1617671543237,16.09525,2148.8,2148.7,2.90695]
[1617671547340,2.90695,2148.8,2148.7,2.90695]
[1617671547544,2.90695,2148.8,2148.7,3.84545]
[1617671547841,2.90695,2148.8,2148.7,2.90695]
[1617671549242,2.90695,2148.8,2148.7,3.82485]
[1617671549443,2.90695,2148.8,2148.7,2.90695]
[1617671550646,2.90695,2148.8,2148.7,5.74275]
[1617671550959,0.41,2149.2,2148.7,6.66295]
[1617671551445,0.41,2149.2,2149.1,2.90695]
[1617671556749,0.41,2149.2,2149.1,32.90695]
[1617671561052,0.05439373,2150.4,2149.1,32.90695]
[1617671561353,0.05439373,2150.4,2150.2,2.90695]
[1617671561554,0.05439022,2150.6,2150.2,4.92685]
[1617671561853,0.05438963,2150.7,2150.2,4.92685]
[1617671562656,0.87538977,2150.4,2150.2,5.85535]
[1617671563056,0.8754077,2150.5,2150.2,4.92685]
[1617671563255,0.8754077,2150.5,2150.2,2.90695]
[1617671563457,2.90695,2150.4,2150.2,2.90695]
[1617671565357,2.90695,2150.4,2150.2,3.84205]
[1617671565758,2.90695,2150.4,2150.2,2.90695]
[1617671566761,0.05458034,2150.3,2150.2,2.90695]
[1617671568162,2.90695,2150.4,2150.2,2.90695]
[1617671568563,0.05458021,2150.3,2150.2,2.90695]
[1617671568764,2.96152974,2150.4,2150.2,2.90695]
[1617671571065,0.05457789,2150.3,2150.2,2.90695]
[1617671571465,2.96152737,2150.4,2150.2,2.90695]
[1617671572466,11.0,2150.3,2150.2,2.90695]
[1617671577076,11.0,2150.3,2150.1,71.36130995]
[1617671577376,11.0,2150.3,2150.1,101.36130995]
[1617671577574,11.0,2150.3,2150.2,2.90695]
[1617671577773,9.1814,2150.3,2150.2,35.20205]
[1617671577973,5.9615,2150.3,2150.2,35.20205]
[1617671578174,5.276,2150.3,2150.2,90.82095]
[1617671578375,5.276,2150.3,2150.2,35.20205]
[1617671578975,5.276,2150.3,2150.2,32.90695]
[1617671580977,5.276,2150.3,2150.2,33.84725]
[1617671581176,19.276,2150.3,2150.2,33.84725]
[1617671582483,18.7725,2150.3,2150.2,33.84725]
[1617671582777,18.3125,2150.3,2150.2,33.84725]
[1617671583077,11.2569,2150.3,2150.2,33.84725]
[1617671583278,9.171,2150.3,2150.2,33.84725]
[1617671583478,7.3809,2150.3,2150.2,33.84725]
[1617671586097,7.3809,2150.3,2150.2,103.93835]
[1617671586984,6.7151,2150.3,2150.2,103.93835]
[1617671587184,6.5327,2150.3,2150.2,103.93835]
[1617671587385,5.6978,2150.3,2150.2,103.93835]
[1617671587887,7.756,2150.3,2150.2,103.93835]
[1617671588686,7.756,2150.3,2150.2,33.84725]
[1617671589187,7.756,2150.3,2150.2,32.90695]
[1617671591187,5.6978,2150.3,2150.2,32.90695]
[1617671594508,2.9438,2150.3,2150.2,94.98785]
[1617671597395,2.9438,2150.3,2150.2,32.90695]
[1617671597793,2.754,2150.3,2150.2,32.90695]
[1617671598693,0.4192,2150.3,2150.2,32.90695]
[1617671598894,0.4192,2150.3,2150.2,34.90695]
[1617671599194,0.1411,2150.4,2150.2,34.90695]
[1617671608208,0.1411,2150.4,2150.2,32.90695]
[1617671609906,2.90695,2150.3,2150.2,32.90695]
[1617671610108,4.69955,2150.3,2150.2,32.90695]
[1617671612908,1.7926,2150.3,2150.2,33.84845]
[1617671613108,0.1411,2150.4,2150.2,33.84845]
[1617671613507,0.1411,2150.4,2150.2,32.90695]
[1617671614609,0.1411,2150.4,2150.2,109.76885]
[1617671615613,0.1411,2150.4,2150.2,32.90695]
[1617671619818,0.0001,2150.4,2150.2,32.90695]
[1617671620017,2.90695,2150.9,2150.2,32.90695]
[1617671621817,2.9614768,2150.9,2150.2,32.90695]
[1617671622020,2.9614768,2150.9,2150.8,2.90695]
[1617671622228,2.90695,2150.9,2150.8,2.90695]
[1617671622618,2.96147662,2150.9,2150.8,2.90695]
[1617671623417,2.96147662,2150.9,2150.3,30.0]
[1617671623620,2.90695,2150.9,2150.3,30.0]
[1617671624019,0.05453102,2150.8,2150.4,2.90695]
[1617671624318,0.05452939,2150.7,2150.4,2.90695]
[1617671624617,0.05454665,2150.8,2150.4,2.90695]
[1617671625918,2.90695,2150.5,2150.4,2.90695]
[1617671626718,5.46995,2150.5,2150.4,2.90695]
[1617671628920,5.46995,2150.5,2149.4,30.0]
[1617671629121,73.8868,2150.1,2149.4,30.0]
[1617671629821,73.94144338,2150.1,2149.4,30.0]
[1617671630026,73.94144338,2150.1,2149.5,2.90695]
[1617671630524,2.10374603,2150.0,2149.5,2.90695]
[1617671630725,0.05464801,2149.9,2149.5,2.90695]
[1617671630921,2.05464801,2149.9,2148.4,30.0]
[1617671631223,0.05464984,2149.8,2148.4,30.0]
[1617671631524,0.05465199,2149.7,2148.4,30.0]
[1617671631721,0.05465235,2149.6,2148.2,30.0]
[1617671632022,0.05465235,2149.6,2148.7,2.90695]
[1617671632323,0.05465235,2149.6,2148.2,30.0]
[1617671632521,0.05465793,2149.5,2148.2,30.0]
[1617671632721,55.1573,2149.4,2148.2,30.0]
[1617671632922,2.05466263,2149.3,2148.2,30.0]
[1617671633324,0.05466282,2149.2,2148.2,30.0]
[1617671633925,0.05466282,2149.2,2148.3,2.90695]
[1617671634826,0.05466775,2149.0,2148.3,2.90695]
[1617671635025,1.76596775,2149.0,2148.3,2.90695]
[1617671636027,2.90695,2148.4,2148.3,2.90695]
[1617671642537,4.99365,2148.4,2148.3,2.90695]
[1617671643637,2.90695,2148.4,2148.3,2.90695]
[1617671644037,2.90695,2148.4,2148.1,2.571]
[1617671644237,5.54855,2148.4,2148.1,2.571]
[1617671645248,77.4832,2148.3,2146.9,30.0]
[1617671645538,77.4832,2148.3,2146.9,30.9218]
[1617671645937,77.4832,2148.3,2146.9,30.0]
[1617671646139,1.99,2148.2,2147.4,2.90695]
[1617671646439,2.044699,2148.2,2147.4,2.90695]
[1617671646638,2.044699,2148.2,2146.8,12.716]
[1617671646939,0.05470067,2148.1,2146.8,5.098]
[1617671647139,1.99,2148.2,2146.8,5.098]
[1617671647541,72.9582,2147.5,2146.8,5.098]
[1617671647741,75.4154,2147.5,2146.8,5.098]
[1617671648143,2.90695,2146.9,2146.8,5.098]
[1617671648346,4.70525,2146.9,2146.8,5.098]
[1617671648743,4.70525,2146.9,2146.8,7.669]
[1617671650046,2.90695,2146.9,2146.8,7.669]
[1617671652448,68.225,2147.8,2146.8,8.2987]
[1617671652649,13.0022,2148.1,2146.8,8.2987]
[1617671652851,13.0022,2148.1,2146.9,2.0]
[1617671654152,13.0022,2148.1,2147.9,2.90695]
[1617671654850,13.0022,2148.1,2147.9,4.75335]
[1617671655650,13.1244,2148.9,2147.9,4.75335]
[1617671656250,13.1244,2148.9,2148.3,2.90695]
[1617671656655,13.1244,2148.9,2147.5,0.9176]
[1617671656852,15.1591,2148.9,2147.4,2.0]
[1617671657052,15.1591,2148.9,2146.8,6.0351]
[1617671657654,17.1591,2148.9,2146.8,8.0351]
[1617671658154,17.1591,2148.9,2146.9,20.90695]
[1617671659454,17.1591,2148.9,2146.8,8.0351]
[1617671660256,17.1591,2148.9,2147.7,2.90695]
[1617671660456,17.1591,2148.9,2146.8,8.0351]
[1617671661257,17.1591,2148.9,2146.8,6.0351]
[1617671662260,17.1591,2148.9,2147.1,2.90695]
[1617671662457,17.1591,2148.9,2146.8,6.0351]
[1617671663357,2.0,2148.0,2146.8,7.669]
[1617671664460,5.73725,2146.9,2146.8,7.669]
[1617671664959,5.73725,2146.9,2146.8,5.098]
[1617671665959,5.73725,2146.9,2145.7,70.3591]
[1617671666360,2.8303,2146.9,2146.2,2.90695]
[1617671668081,2.8303,2146.9,2146.2,3.83655]
[1617671668287,2.0,2147.8,2146.6,2.90695]
[1617671668470,26.1788,2147.9,2146.6,2.90695]
[1617671668673,28.1788,2147.9,2146.6,2.90695]
[1617671669475,28.1788,2147.9,2146.6,3.83475]
[1617671669667,28.1788,2147.9,2146.6,2.90695]
[1617671670367,2.90695,2146.7,2146.6,2.90695]
[1617671671871,2.90695,2146.7,2146.3,0.931]
[1617671672074,2.90695,2146.7,2145.7,71.2799]
[1617671672471,2.90695,2146.7,2146.6,2.90695]
[1617671673775,2.90695,2146.7,2145.7,71.2799]
[1617671674474,2.6427,2146.9,2146.2,2.90695]
[1617671674675,66.4355,2146.9,2146.2,2.90695]
[1617671675073,66.4355,2146.9,2145.5,0.02]
[1617671675674,2.0,2146.8,2145.5,0.02]
[1617671676374,66.8429,2145.8,2144.9,5.098]
[1617671676574,68.9277,2145.8,2145.6,2.90695]
[1617671676774,68.9277,2145.8,2144.9,5.098]
[1617671678075,68.9177,2145.8,2144.9,5.098]
[1617671678575,5.41035,2145.0,2144.9,5.098]
[1617671680476,2.90695,2145.0,2144.9,5.098]
[1617671681878,2.90695,2145.0,2144.9,6.0399]
[1617671682178,2.90695,2145.0,2144.9,5.098]
[1617671682977,2.90695,2145.0,2144.8,2.90695]
[1617671683379,60.6539,2145.6,2144.9,2.571]
[1617671683581,60.6539,2145.6,2144.9,3.4909]
[1617671684182,60.6539,2145.6,2144.9,2.571]
[1617671684482,63.56085,2145.6,2145.5,2.90695]
[1617671685583,63.56085,2145.6,2144.9,2.571]
[1617671685884,5.69745,2145.6,2144.9,2.571]
[1617671686083,70.2662,2145.0,2144.9,2.571]
[1617671686483,73.17315,2145.0,2144.9,2.571]
[1617671687887,5.74335,2145.0,2143.6,4.571]
[1617671688284,18.74335,2145.0,2143.6,4.571]
[1617671688607,62.1335,2144.4,2144.3,2.90695]
[1617671688785,63.9615,2144.4,2144.3,2.90695]
[1617671690594,66.86845,2144.4,2144.3,2.90695]
[1617671691319,66.86845,2144.4,2143.6,4.571]
[1617671691530,66.86845,2144.4,2143.6,2.571]
[1617671691995,66.86845,2144.4,2144.2,0.02]
[1617671692393,66.86845,2144.4,2143.6,2.571]
[1617671692695,5.51765,2143.7,2143.6,2.571]
[1617671693697,5.50765,2143.7,2143.6,2.571]
[1617671695300,52.387,2143.6,2143.2,8.00495]
[1617671696602,2.90695,2143.3,2143.2,8.00495]
[1617671697503,2.89695,2143.3,2143.2,8.00495]
[1617671698103,2.88695,2143.3,2143.2,8.00495]
[1617671701154,75.8191,2144.4,2143.2,8.00495]
[1617671702330,75.8191,2144.4,2143.3,2.0]
[1617671702805,1.828,2144.4,2144.1,5.52825]
[1617671703004,12.7637,2144.6,2144.1,5.52825]
[1617671704205,12.7637,2144.6,2144.1,2.90695]
[1617671704404,12.7637,2144.6,2143.7,53.051]
[1617671704605,12.7637,2144.6,2143.3,2.0]
[1617671704905,2.90695,2143.8,2143.3,2.0]
[1617671705205,2.90695,2143.8,2143.2,5.098]
[1617671706409,61.1008,2144.2,2143.2,5.098]
[1617671706807,2.90695,2144.1,2144.0,2.90695]
[1617671707107,61.1008,2144.2,2144.0,2.90695]
[1617671707607,0.41,2144.4,2144.0,2.90695]
[1617671708308,0.41,2144.4,2143.4,77.3739]
[1617671708708,0.41,2144.4,2143.8,2.90695]
[1617671709917,0.41,2144.4,2143.8,4.85145]
[1617671710208,0.41,2144.4,2143.9,2.0]
[1617671710909,0.41,2144.4,2144.3,5.16745]
[1617671712028,13.0,2145.0,2144.3,7.16745]
[1617671712214,13.0,2145.0,2144.3,8.09785]
[1617671713110,13.0,2145.0,2144.9,1.7242]
[1617671714317,13.0,2145.0,2144.9,2.6674]
[1617671714917,13.0,2145.0,2144.9,5.57435]
[1617671715520,11.2015,2145.0,2144.9,5.57435]
[1617671715824,11.2015,2145.0,2144.9,66.67195]
[1617671715825,10.2915,2145.0,2144.9,66.67195]
[1617671717918,9.6008,2145.0,2144.9,66.67195]
[1617671718118,8.2223,2145.0,2144.9,66.67195]
[1617671718517,7.2873,2145.0,2144.9,66.67195]
[1617671718918,6.3493,2145.0,2144.9,66.67195]
[1617671719118,4.5193,2145.0,2144.9,66.67195]
[1617671720221,3.1228,2145.0,2144.9,66.67195]
[1617671720823,25.1634,2147.0,2144.9,7.57435]
[1617671721027,2.90695,2147.0,2145.0,64.665]
[1617671721222,56.5662,2148.4,2145.1,2.0]
[1617671721223,13.474,2148.3,2145.1,2.0]
[1617671721429,26.3985,2148.3,2145.1,2.0]
[1617671721625,26.3985,2148.3,2146.2,59.598]
[1617671721825,26.3985,2148.3,2146.3,2.0]
[1617671722025,26.3985,2148.3,2146.3,4.571]
[1617671722928,26.3985,2148.3,2148.1,2.90695]
[1617671723126,26.3985,2148.3,2147.4,2.3557]
[1617671724429,28.2602,2148.3,2146.3,4.571]
[1617671724830,71.2067,2147.7,2146.3,4.571]
[1617671725030,73.4746,2147.7,2147.1,2.90695]
[1617671725931,73.4746,2147.7,2146.3,4.571]
[1617671726734,2.0,2147.6,2146.3,4.571]
[1617671726935,2.90695,2146.4,2146.3,2.571]
[1617671727135,5.20975,2146.4,2146.3,2.571]
[1617671727335,75.47785,2146.4,2146.3,2.571]
[1617671731037,75.47785,2146.4,2146.3,5.47795]
[1617671731237,75.47785,2146.4,2146.3,2.571]
[1617671731743,5.20975,2146.4,2146.3,2.571]
[1617671732044,5.20975,2146.4,2145.3,59.9563]
[1617671732538,5.20975,2146.4,2145.3,62.0171]
[1617671732539,2.90695,2146.4,2145.3,62.0171]
[1617671733044,2.90695,2146.4,2146.3,2.90695]
[1617671737442,5.63065,2146.4,2144.9,16.2302]
[1617671737642,65.4696,2146.3,2144.9,15.287]
[1617671738342,2.0,2146.2,2144.9,15.287]
[1617671739045,65.4696,2146.3,2145.8,2.90695]
[1617671739242,67.4696,2146.3,2145.8,2.90695]
[1617671739744,65.4696,2146.3,2145.8,2.90695]
[1617671740744,2.0,2146.2,2145.8,2.90695]
[1617671741145,2.90695,2145.9,2145.8,2.90695]
[1617671741345,4.72815,2145.9,2145.8,2.90695]
[1617671742746,4.72815,2145.9,2144.9,15.287]
[1617671743246,1.8212,2145.9,2145.0,2.90695]
[1617671745257,2.90695,2145.1,2145.0,2.90695]
[1617671749958,2.90695,2145.1,2143.5,66.7865]
[1617671750659,4.90695,2145.1,2143.5,66.7865]
[1617671751159,2.0,2145.1,2144.6,2.90695]
[1617671751861,2.0,2145.1,2143.5,66.7865]
[1617671751862,2.0,2145.1,2143.5,2.571]
[1617671752061,55.3144,2144.4,2143.5,2.571]
[1617671752262,57.2737,2144.4,2143.5,2.571]
[1617671752862,59.2737,2144.4,2143.5,2.571]
[1617671753165,59.2737,2144.4,2143.8,2.90695]
[1617671755264,2.90695,2143.9,2143.8,2.90695]
[1617671755464,5.68695,2143.9,2143.8,2.90695]
[1617671758268,5.68695,2143.9,2143.5,2.571]
[1617671759168,2.90695,2143.6,2143.5,2.571]
[1617671761471,4.90695,2143.6,2143.5,2.571]
[1617671762073,4.90695,2143.6,2141.7,13.6547]
[1617671762372,4.90695,2143.6,2141.4,7.098]
[1617671762672,66.1547,2142.5,2141.4,7.098]
[1617671763274,66.1547,2142.5,2142.2,2.90695]
[1617671763572,66.1547,2142.5,2141.7,2.571]
[1617671764673,66.1347,2142.5,2141.7,2.571]
[1617671764878,2.0,2142.4,2141.7,2.571]
[1617671765175,2.90695,2141.8,2141.7,2.571]
[1617671765676,5.40925,2141.8,2141.7,2.571]
[1617671768197,5.40925,2141.8,2141.4,5.098]
[1617671768381,5.40925,2141.8,2140.6,0.9414]
[1617671768580,5.40925,2141.8,2140.1,6.0386]
[1617671768581,71.7765,2141.2,2140.1,6.0386]
[1617671768783,74.0837,2141.2,2140.1,6.0364]
[1617671768981,74.0837,2141.2,2140.1,5.098]
[1617671769182,74.0837,2141.2,2141.1,2.90695]
[1617671770181,12.6992,2141.7,2141.1,2.90695]
[1617671771382,12.6992,2141.7,2141.6,5.47795]
[1617671771983,12.6992,2141.7,2141.6,2.571]
[1617671772182,13.6308,2141.7,2141.6,2.571]
[1617671772381,12.6992,2141.7,2141.6,2.571]
[1617671772782,12.6992,2141.7,2141.2,2.6167]
[1617671773184,2.90695,2141.9,2141.6,2.90695]
[1617671773384,77.9727,2143.9,2141.6,2.90695]
[1617671773385,0.02707422,2145.9,2141.6,2.90695]
[1617671773585,12.6657,2142.8,2141.6,2.90695]
[1617671774786,12.6657,2142.8,2141.8,54.4472]
[1617671774986,12.6657,2142.8,2141.8,2.7685]
[1617671775338,12.6657,2142.8,2142.7,4.66955]
[1617671776490,12.6657,2142.8,2142.7,2.90695]
[1617671776790,12.6657,2142.8,2141.8,0.9321]
[1617671776990,12.6657,2142.8,2141.2,0.9289]
[1617671777193,12.6657,2142.8,2141.9,2.90695]
[1617671777823,12.6657,2142.8,2141.2,0.9289]
[1617671778064,12.6657,2142.8,2140.9,54.5095]
[1617671778066,12.6557,2142.8,2140.9,54.5095]
[1617671778594,13.5905,2142.8,2140.9,54.5095]
[1617671779195,13.5905,2142.8,2140.5,3.5033]
[1617671779393,67.3069,2142.0,2140.5,2.571]
[1617671779795,66.3647,2142.0,2140.5,2.571]
[1617671780994,2.0,2141.9,2140.5,2.571]
[1617671781295,2.90695,2140.6,2140.5,2.571]
[1617671781497,4.99355,2140.6,2140.5,2.571]
[1617671781695,83.04705,2140.6,2140.5,2.571]
[1617671782794,83.04705,2140.6,2139.2,0.946]
[1617671783194,83.98695,2140.6,2140.1,0.0001]
[1617671783393,83.98695,2140.6,2138.5,56.2724]
[1617671783394,2.90695,2140.2,2138.8,2.90695]
[1617671784094,68.4504,2139.7,2138.8,2.90695]
[1617671784396,70.7807,2139.7,2138.8,2.90695]
[1617671785196,70.7807,2139.7,2137.4,69.0199]
[1617671785397,2.90695,2138.1,2138.0,2.90695]
[1617671786201,2.62175,2138.1,2138.0,2.90695]
[1617671787002,2.60175,2138.1,2138.0,2.90695]
[1617671787699,0.9339,2138.1,2138.0,2.90695]
[1617671787911,0.9238,2139.8,2138.0,2.90695]
[1617671787912,74.8851,2139.8,2138.0,2.90695]
[1617671788100,74.8851,2139.8,2138.0,4.61935]
[1617671788401,74.8851,2139.8,2138.1,2.0]
[1617671788802,74.8851,2139.8,2138.0,4.61935]
[1617671789002,74.8851,2139.8,2138.0,5.56105]
[1617671789202,75.8099,2139.8,2138.0,4.63935]
[1617671789503,75.8099,2139.8,2138.5,2.90695]
[1617671790302,75.8099,2139.8,2138.5,3.83205]
[1617671790511,74.8851,2139.8,2138.5,5.42525]
[1617671791405,74.8851,2139.8,2139.7,2.90695]
[1617671791612,74.8851,2139.8,2139.7,5.64955]
[1617671791806,2.0,2142.5,2139.7,5.64955]
[1617671792010,76.3994,2140.7,2139.7,5.64955]
[1617671792307,13.1065,2140.1,2139.7,5.64955]
[1617671792907,13.1065,2140.1,2139.7,5.38075]
[1617671793610,13.1065,2140.1,2140.0,2.90695]
[1617671794812,70.5628,2141.7,2140.0,2.90695]
[1617671795513,70.5628,2141.7,2139.7,2.4738]
[1617671795514,70.5628,2141.7,2140.3,2.90695]
[1617671797413,2.90695,2140.4,2140.3,2.90695]
[1617671797729,2.90695,2140.4,2139.2,0.9476]
[1617671797953,5.09565,2140.4,2138.7,76.775]
[1617671798444,5.09565,2140.4,2137.6,2.0]
[1617671798827,5.09565,2140.4,2137.6,7.098]
[1617671798828,75.4478,2139.9,2137.6,7.098]
[1617671799421,75.4478,2139.9,2139.0,2.90695]
[1617671801021,13.1835,2140.3,2139.0,2.90695]
[1617671801521,2.90695,2139.1,2139.0,2.90695]
[1617671803223,2.90695,2139.1,2138.2,79.2619]
[1617671803225,2.90695,2139.1,2138.2,0.9467]
[1617671803539,2.5187,2139.1,2138.7,2.90695]
[1617671804356,2.5187,2139.1,2137.6,7.098]
[1617671804567,2.5187,2139.1,2137.6,5.098]
[1617671805551,2.5187,2139.1,2138.2,2.90695]
[1617671805735,12.7348,2139.5,2138.2,2.90695]
[1617671806429,13.6649,2139.5,2138.2,2.90695]
[1617671806629,12.7348,2139.5,2138.2,2.90695]
[1617671806829,2.0,2139.4,2138.2,2.90695]
[1617671807430,2.90695,2138.3,2138.2,2.90695]
[1617671808031,2.90695,2138.3,2137.6,5.098]
[1617671808932,2.90695,2138.3,2136.6,9.618]
[1617671809332,2.90695,2138.3,2136.6,7.618]
[1617671809535,73.9639,2138.4,2137.4,2.90695]
[1617671810035,74.9031,2138.4,2137.4,2.90695]
[1617671810439,73.9639,2138.4,2137.4,2.90695]
[1617671810636,75.9639,2138.4,2137.4,2.90695]
[1617671811436,2.90695,2137.5,2137.4,2.90695]
[1617671820447,2.90695,2137.5,2137.3,0.02]
[1617671820448,69.8397,2137.4,2137.3,0.02]
[1617671821345,69.8397,2137.4,2136.0,0.9452]
[1617671821646,69.8397,2137.4,2136.8,2.90695]
[1617671822046,3.31695,2137.5,2136.8,2.90695]
[1617671822247,3.31695,2137.5,2136.8,5.16715]
[1617671822448,3.31695,2137.5,2136.8,6.10995]
[1617671823050,0.41,2137.5,2136.8,8.10995]
[1617671823387,13.6923,2138.1,2136.8,8.10995]
[1617671823566,16.59925,2138.1,2138.0,2.90695]
[1617671823759,16.59925,2138.1,2138.0,5.68055]
[1617671824357,16.59925,2138.1,2138.0,2.7736]
[1617671824749,16.59925,2138.1,2137.5,0.9395]
[1617671825551,13.6923,2138.1,2137.7,2.90695]
[1617671825954,14.6243,2138.1,2137.7,2.90695]
[1617671827153,13.6923,2138.1,2137.7,2.90695]
[1617671827353,13.6923,2138.1,2137.5,0.9395]
[1617671827553,2.90695,2137.6,2137.5,0.9395]
[1617671828753,2.90695,2137.6,2137.5,0.9595]
[1617671829153,2.90695,2137.6,2137.5,0.9395]
[1617671829553,2.90695,2137.6,2137.5,0.9595]
[1617671832156,13.6923,2138.1,2137.5,0.9595]
[1617671833357,71.8832,2139.4,2137.5,0.9595]
[1617671833566,12.5978,2139.0,2137.5,0.9595]
[1617671833770,12.5978,2139.0,2138.9,4.66135]
[1617671834157,2.90695,2139.2,2138.9,4.66135]
[1617671835359,13.0255,2139.7,2138.9,4.66135]
[1617671835558,13.0255,2139.7,2138.9,2.90695]
[1617671835760,13.0255,2139.7,2138.6,0.9475]
[1617671835761,13.0255,2139.7,2139.6,2.90695]
[1617671835961,13.0255,2139.7,2138.6,0.9475]
[1617671837799,13.0255,2139.7,2139.2,2.90695]
[1617671837976,2.0,2139.6,2139.2,2.90695]
[1617671838465,13.0255,2139.7,2139.2,2.90695]
[1617671838878,13.0255,2139.7,2138.3,77.3133]
[1617671839369,71.7904,2139.2,2137.5,1.3395]
[1617671839565,74.09,2139.2,2137.5,0.4]
[1617671839765,74.09,2139.2,2138.5,2.90695]
[1617671840364,2.2996,2139.2,2138.5,2.90695]
[1617671841468,2.0,2139.6,2138.5,2.90695]
[1617671843674,2.90695,2138.6,2138.5,2.90695]
[1617671846380,13.0255,2139.7,2138.5,4.91005]
[1617671847683,13.0255,2139.7,2139.2,2.90695]
[1617671848282,13.0255,2139.7,2138.5,0.9425]
[1617671848481,15.7594,2139.7,2137.9,72.0739]
[1617671848682,15.7594,2139.7,2137.9,71.1248]
[1617671849381,2.0,2139.6,2137.9,71.1248]
[1617671849681,2.0,2139.6,2138.3,2.90695]
[1617671849882,2.9461,2139.6,2138.3,2.90695]
[1617671850081,2.0,2139.6,2138.3,2.90695]
[1617671850897,2.0,2139.6,2137.5,2.971]
[1617671851184,60.4646,2138.9,2137.5,2.971]
[1617671851383,63.9585,2138.9,2137.5,2.971]
[1617671851585,63.0103,2138.9,2137.5,2.971]
[1617671851783,63.0103,2138.9,2137.7,2.90695]
[1617671851984,2.0,2138.8,2137.7,2.90695]
[1617671852384,2.0,2138.8,2137.5,2.971]
[1617671852785,2.0,2138.8,2137.5,0.4]
[1617671853489,14.806,2138.8,2137.5,0.4]
[1617671853683,2.90695,2137.6,2137.5,0.4]
[1617671859690,4.90695,2137.6,2137.5,0.4]
[1617671860293,4.89695,2137.6,2137.5,0.4]
[1617671861892,4.89695,2137.6,2136.4,2.90695]